fUST/lending_fUST_20240302
["ID","MTS","AMOUNT","RATE_DAILY","PERIOD"]
[316039279,1709332237952,-170.264845,0.00019178,2]
[316039280,1709332237961,-173.000186,0.00019356,2]
[316039281,1709332237970,-927.96793902,0.00019598,2]
[316039282,1709332237979,-15234.87744507,0.00019999,2]
[316039283,1709332237988,-20840.03860396,0.0002,2]
[316039284,1709332237997,-155.06047358,0.0002,2]
[316039285,1709332238005,-400.0,0.0002,2]
[316039286,1709332238014,-155.05737123,0.0002,2]
[316039287,1709332238024,-238.53127687,0.00020284,2]
[316039288,1709332238033,-156.6342593,0.00020287,2]
[316039289,1709332238041,-180.622579,0.00020396,2]
[316039290,1709332238050,-1313.41194402,0.00020447,2]
[316039291,1709332238059,-3757.96,0.00020537,3]
[316039292,1709332238068,-525.7525633,0.00020546,2]
[316039293,1709332238077,-492.29643675,0.00020546,2]
[316039294,1709332238086,-500.0,0.00020547,2]
[316039295,1709332238094,-640.06006059,0.00020547,2]
[316039297,1709332238104,-500.0,0.00020547,2]
[316039298,1709332238113,-500.0,0.00020547,2]
[316039299,1709332238122,-500.0,0.00020547,2]
[316039301,1709332238131,-500.0,0.00020547,2]
[316039303,1709332238140,-500.0,0.00020547,2]
[316039305,1709332238150,-500.0,0.00020547,2]
[316039307,1709332238158,-500.9495085,0.00020547,2]
[316039309,1709332238171,-500.61198271,0.00020547,2]
[316039311,1709332238180,-500.0,0.00020547,2]
[316039313,1709332238189,-500.0,0.00020547,2]
[316039315,1709332238198,-398.08673107,0.00020547,2]
[316039316,1709332238207,-500.0,0.00020547,2]
[316039317,1709332238216,-500.0,0.00020547,2]
[316039319,1709332238225,-500.0,0.00020547,2]
[316039321,1709332238235,-500.0,0.00020547,2]
[316039322,1709332238246,-500.0,0.00020547,2]
[316039323,1709332238255,-500.0,0.00020547,2]
[316039324,1709332238265,-500.0,0.00020547,2]
[316039325,1709332238274,-500.0,0.00020547,2]
[316039326,1709332238284,-500.0,0.00020547,2]
[316039327,1709332238293,-261.29636981,0.00020547,2]
[316039328,1709332238302,-521.15,0.00020547,2]
[316039329,1709332238312,-500.0,0.00020547,2]
[316039330,1709332238322,-521.15,0.00020547,2]
[316039331,1709332238331,-500.0,0.00020547,2]
[316039332,1709332238340,-521.15,0.00020547,2]
[316039333,1709332238350,-442.66280447,0.00020547,2]
[316039334,1709332238359,-521.15,0.00020547,2]
[316039335,1709332238369,-521.15,0.00020547,2]
[316039336,1709332238378,-521.15,0.00020547,2]
[316039337,1709332238387,-521.15,0.00020547,2]
[316039338,1709332238396,-521.15,0.00020547,2]
[316039339,1709332238405,-521.15,0.00020547,2]
[316039340,1709332238415,-521.15,0.00020547,2]
[316039341,1709332238424,-521.15,0.00020547,2]
[316039342,1709332238433,-521.15,0.00020547,2]
[316039343,1709332238443,-521.15,0.00020547,2]
[316039344,1709332238452,-521.15,0.00020547,2]
[316039345,1709332238462,-521.15,0.00020547,2]
[316039346,1709332238471,-521.15,0.00020547,2]
[316039347,1709332238481,-521.15,0.00020547,2]
[316039348,1709332238491,-521.15,0.00020547,2]
[316039349,1709332238501,-521.15,0.00020547,2]
[316039350,1709332238510,-521.15,0.00020547,2]
[316039351,1709332238520,-521.15,0.00020547,2]
[316039352,1709332238530,-521.15,0.00020547,2]
[316039353,1709332238539,-521.15,0.00020547,2]
[316039354,1709332238548,-521.31727978,0.00020547,2]
[316039355,1709332238557,-500.4947331,0.00020547,2]
[316039356,1709332238567,-500.0,0.00020547,2]
[316039357,1709332238576,-500.0,0.00020547,2]
[316039358,1709332238585,-508.32552847,0.00020547,2]
[316039359,1709332238594,-500.0,0.00020547,2]
[316039360,1709332238604,-500.0,0.00020547,2]
[316039361,1709332238613,-500.0,0.00020547,2]
[316039362,1709332238623,-500.0,0.00020547,2]
[316039363,1709332238632,-502.11613099,0.00020547,2]
[316039364,1709332238642,-500.0,0.00020547,2]
[316039365,1709332238651,-500.0,0.00020547,2]
[316039366,1709332238660,-500.0,0.00020547,2]
[316039367,1709332238669,-502.70298707,0.00020547,2]
[316039368,1709332238679,-500.0,0.00020547,2]
[316039369,1709332238688,-500.0,0.00020547,2]
[316039370,1709332238698,-500.0,0.00020547,2]
[316039371,1709332238707,-1805.59,0.00020547,2]
[316039372,1709332238716,-1805.59,0.00020547,2]
[316039373,1709332238726,-1805.59,0.00020547,2]
[316039374,1709332238735,-1805.59,0.00020547,2]
[316039375,1709332238744,-1805.59,0.00020547,2]
[316039376,1709332238753,-1805.59,0.00020547,2]
[316039377,1709332238762,-1805.59,0.00020547,2]
[316039378,1709332238772,-1805.59,0.00020547,2]
[316039379,1709332238781,-500.0,0.00020547,2]
[316039380,1709332238790,-500.0,0.00020547,2]
[316039381,1709332238800,-1091.21,0.00020547,2]
[316039382,1709332238809,-1091.21,0.00020547,2]
[316039383,1709332238819,-1091.21,0.00020547,2]
[316039384,1709332238828,-1091.21,0.00020547,2]
[316039385,1709332238838,-1091.21,0.00020547,2]
[316039386,1709332238847,-1091.21,0.00020547,2]
[316039387,1709332238857,-1091.21,0.00020547,2]
[316039388,1709332238867,-1091.21,0.00020547,2]
[316039389,1709332238876,-500.0,0.00020547,2]
[316039390,1709332238886,-500.0,0.00020547,2]
[316039391,1709332238895,-500.0,0.00020547,2]
[316039392,1709332238904,-500.0,0.00020547,2]
[316039393,1709332238914,-500.0,0.00020547,2]
[316039394,1709332238923,-336.95,0.00020547,2]
[316039395,1709332238932,-500.0,0.00020547,2]
[316039396,1709332238942,-500.0,0.00020547,2]
[316039397,1709332238951,-500.0,0.00020547,2]
[316039398,1709332238960,-500.0,0.00020547,2]
[316039399,1709332238972,-500.0,0.00020547,2]
[316039400,1709332238981,-500.0,0.00020547,2]
[316039401,1709332238990,-500.0,0.00020547,2]
[316039402,1709332239000,-500.0,0.00020547,2]
[316039403,1709332239009,-500.0,0.00020547,2]
[316039404,1709332239019,-160.59,0.00020547,2]
[316039405,1709332239028,-500.0,0.00020547,2]
[316039406,1709332239037,-500.0,0.00020547,2]
[316039407,1709332239047,-500.0,0.00020547,2]
[316039408,1709332239056,-500.0,0.00020547,2]
[316039409,1709332239065,-500.0,0.00020547,2]
[316039410,1709332239073,-500.0,0.00020547,2]
[316039411,1709332239083,-500.0,0.00020547,2]
[316039412,1709332239092,-500.0,0.00020547,2]
[316039413,1709332239101,-500.0,0.00020547,2]
[316039414,1709332239110,-500.0,0.00020547,2]
[316039415,1709332239120,-500.0,0.00020547,2]
[316039416,1709332239129,-500.0,0.00020547,2]
[316039417,1709332239138,-500.0,0.00020547,2]
[316039418,1709332239152,-500.0,0.00020547,2]
[316039419,1709332239161,-500.0,0.00020547,2]
[316039420,1709332239170,-500.0,0.00020547,2]
[316039421,1709332239180,-395.53381871,0.00020547,2]
[316039422,1709332239190,-727.63,0.00020547,2]
[316039423,1709332239200,-727.63,0.00020547,2]
[316039424,1709332239209,-727.63,0.00020547,2]
[316039425,1709332239219,-727.63,0.00020547,2]
[316039426,1709332239228,-727.63,0.00020547,2]
[316039427,1709332239239,-727.63,0.00020547,2]
[316039428,1709332239249,-727.63,0.00020547,2]
[316039429,1709332239258,-727.63,0.00020547,2]
[316039430,1709332239267,-500.0,0.00020547,2]
[316039431,1709332239276,-500.0,0.00020547,2]
[316039432,1709332239287,-500.0,0.00020547,2]
[316039433,1709332239296,-500.0,0.00020547,2]
[316039434,1709332239305,-500.0,0.00020547,2]
[316039435,1709332239315,-500.0,0.00020547,2]
[316039436,1709332239407,-500.0,0.00020547,2]
[316039437,1709332239417,-500.0,0.00020547,2]
[316039438,1709332239426,-500.0,0.00020547,2]
[316039439,1709332239435,-500.0,0.00020547,2]
[316039440,1709332239446,-500.0,0.00020547,2]
[316039441,1709332239455,-500.0,0.00020547,2]
[316039442,1709332239465,-500.0,0.00020547,2]
[316039443,1709332239474,-500.0,0.00020547,2]
[316039444,1709332239483,-500.0,0.00020547,2]
[316039445,1709332239493,-500.0,0.00020547,2]
[316039446,1709332239504,-407.6,0.00020547,2]
[316039447,1709332239514,-500.0,0.00020547,2]
[316039448,1709332239523,-500.0,0.00020547,2]
[316039449,1709332239532,-500.0,0.00020547,2]
[316039450,1709332239543,-500.0,0.00020547,2]
[316039451,1709332239552,-500.0,0.00020547,2]
[316039452,1709332239562,-500.0,0.00020547,2]
[316039453,1709332239572,-500.0,0.00020547,2]
[316039454,1709332239581,-500.0,0.00020547,2]
[316039455,1709332239591,-500.0,0.00020547,2]
[316039456,1709332239601,-1247.01,0.00020547,2]
[316039457,1709332239610,-1247.01,0.00020547,2]
[316039458,1709332239619,-1247.01,0.00020547,2]
[316039459,1709332239629,-1247.01,0.00020547,2]
[316039460,1709332239638,-1247.01,0.00020547,2]
[316039461,1709332239648,-1247.01,0.00020547,2]
[316039462,1709332239657,-1247.01,0.00020547,2]
[316039463,1709332239667,-1247.01,0.00020547,2]
[316039464,1709332239676,-500.0,0.00020547,2]
[316039465,1709332239685,-500.0,0.00020547,2]
[316039466,1709332239694,-500.0,0.00020547,2]
[316039467,1709332239704,-500.0,0.00020547,2]
[316039468,1709332239713,-500.0,0.00020547,2]
[316039469,1709332239723,-500.0,0.00020547,2]
[316039470,1709332239732,-500.0,0.00020547,2]
[316039471,1709332239741,-500.0,0.00020547,2]
[316039472,1709332239751,-500.0,0.00020547,2]
[316039473,1709332239760,-500.0,0.00020547,2]
[316039474,1709332239770,-500.0,0.00020547,2]
[316039475,1709332239779,-515.9267702,0.00020547,2]
[316039476,1709332239788,-500.0,0.00020547,2]
[316039477,1709332239798,-500.0,0.00020547,2]
[316039478,1709332239806,-500.0,0.00020547,2]
[316039480,1709332239815,-500.0,0.00020547,2]
[316039482,1709332239824,-500.0,0.00020547,2]
[316039484,1709332239833,-500.0,0.00020547,2]
[316039485,1709332239843,-500.0,0.00020547,2]
[316039486,1709332239851,-500.0,0.00020547,2]
[316039487,1709332239861,-500.0,0.00020547,2]
[316039488,1709332239871,-500.0,0.00020547,2]
[316039489,1709332239880,-500.0,0.00020547,2]
[316039490,1709332239889,-500.0,0.00020547,2]
[316039491,1709332239898,-500.0,0.00020547,2]
[316039493,1709332239907,-358.55935707,0.00020547,2]
[316039495,1709332239917,-500.0,0.00020547,2]
[316039496,1709332239927,-500.0,0.00020547,2]
[316039497,1709332239936,-1078.41,0.00020547,2]
[316039499,1709332239948,-592.76973769,0.00020547,2]
[316039501,1709332239957,-500.0,0.00020547,2]
[316039503,1709332239966,-500.0,0.00020547,2]
[316039504,1709332239974,-1078.41,0.00020547,2]
[316039505,1709332239983,-1078.41,0.00020547,2]
[316039506,1709332239992,-1078.41,0.00020547,2]
[316039507,1709332240001,-1078.41,0.00020547,2]
[316039508,1709332240010,-1078.41,0.00020547,2]
[316039509,1709332240019,-1078.41,0.00020547,2]
[316039510,1709332240028,-1078.41,0.00020547,2]
[316039511,1709332240037,-1078.41,0.00020547,2]
[316039512,1709332240046,-1078.41,0.00020547,2]
[316039514,1709332240055,-1078.41,0.00020547,2]
[316039516,1709332240064,-975.26,0.00020547,2]
[316039517,1709332240072,-975.26,0.00020547,2]
[316039518,1709332240081,-975.26,0.00020547,2]
[316039519,1709332240090,-975.26,0.00020547,2]
[316039520,1709332240100,-975.26,0.00020547,2]
[316039521,1709332240109,-975.26,0.00020547,2]
[316039522,1709332240117,-975.26,0.00020547,2]
[316039523,1709332240126,-500.0,0.00020547,2]
[316039524,1709332240135,-500.0,0.00020547,2]
[316039525,1709332240145,-500.0,0.00020547,2]
[316039526,1709332240154,-500.0,0.00020547,2]
[316039527,1709332240163,-500.0,0.00020547,2]
[316039528,1709332240174,-500.0,0.00020547,2]
[316039529,1709332240183,-201.15106502,0.00020547,2]
[316039530,1709332240192,-500.0,0.00020547,2]
[316039531,1709332240201,-500.0,0.00020547,2]
[316039532,1709332240211,-500.0,0.00020547,2]
[316039533,1709332240220,-500.0,0.00020547,2]
[316039534,1709332240229,-500.0,0.00020547,2]
[316039535,1709332240238,-500.0,0.00020547,2]
[316039536,1709332240249,-500.0,0.00020547,2]
[316039537,1709332240259,-500.0,0.00020547,2]
[316039538,1709332240268,-500.0,0.00020547,2]
[316039539,1709332240277,-500.0,0.00020547,2]
[316039540,1709332240287,-500.0,0.00020547,2]
[316039541,1709332240295,-500.0,0.00020547,2]
[316039542,1709332240304,-500.0,0.00020547,2]
[316039543,1709332240313,-500.0,0.00020547,2]
[316039544,1709332240323,-1252.97,0.00020547,2]
[316039545,1709332240332,-1252.97,0.00020547,2]
[316039546,1709332240341,-1252.97,0.00020547,2]
[316039547,1709332240350,-1252.97,0.00020547,2]
[316039548,1709332240360,-1252.97,0.00020547,2]
[316039549,1709332240369,-500.0,0.00020547,2]
[316039550,1709332240377,-1252.97,0.00020547,2]
[316039551,1709332240387,-500.0,0.00020547,2]
[316039552,1709332240396,-500.0,0.00020547,2]
[316039553,1709332240406,-1252.97,0.00020547,2]
[316039554,1709332240415,-964.49,0.00020547,2]
[316039555,1709332240425,-1252.97,0.00020547,2]
[316039556,1709332240434,-964.49,0.00020547,2]
[316039557,1709332240443,-964.49,0.00020547,2]
[316039558,1709332240451,-964.49,0.00020547,2]
[316039559,1709332240460,-964.49,0.00020547,2]
[316039560,1709332240469,-964.49,0.00020547,2]
[316039561,1709332240478,-964.49,0.00020547,2]
[316039562,1709332240487,-964.49,0.00020547,2]
[316039563,1709332240497,-371.80243991,0.00020547,2]
[316039564,1709332240506,-10191.56,0.00020547,2]
[316039565,1709332240515,-10191.56,0.00020547,2]
[316039566,1709332240524,-10191.56,0.00020547,2]
[316039567,1709332240533,-1005.62,0.00020547,2]
[316039568,1709332240543,-1005.62,0.00020547,2]
[316039569,1709332240552,-500.0,0.00020547,2]
[316039570,1709332240561,-1005.62,0.00020547,2]
[316039571,1709332240569,-862.78718079,0.00020563,2]
[316039572,1709332240578,-635.39839695,0.00020578,2]
[316039573,1709332240587,-374.68023099,0.00020657,2]
[316039574,1709332240597,-975.26,0.00020662,2]
[316039575,1709332240608,-975.26,0.00020662,2]
[316039576,1709332240617,-975.26,0.00020662,2]
[316039577,1709332240626,-975.26,0.00020662,2]
[316039578,1709332240635,-975.26,0.00020662,2]
[316039579,1709332240644,-975.26,0.00020662,2]
[316039580,1709332240653,-975.26,0.00020662,2]
[316039581,1709332240663,-50000.0,0.00020663,2]
[316039582,1709332240672,-50000.0,0.00020663,2]
[316039583,1709332240682,-50000.0,0.00020663,2]
[316039584,1709332240691,-50000.0,0.00020663,2]
[316039585,1709332240700,-79445.55233093,0.00020663,2]
[316039587,1709332240709,-16797.85563504,0.00020663,4]
[316039589,1709332240719,-591.738319,0.00020663,2]
[316039590,1709332240728,-591.738319,0.00020663,2]
[316039591,1709332240737,-500.0,0.00020718,2]
[316039592,1709332240746,-975.26,0.00020718,2]
[316039593,1709332240755,-1583.09071493,0.00020719,2]
[316039594,1709332240765,-1400.0,0.00020719,2]
[316039596,1709332240775,-29555.64401057,0.00020719,4]
[316039597,1709332240784,-7938.15568072,0.00020719,2]
[316039598,1709332240793,-683.21406215,0.00020719,2]
[316039599,1709332240803,-8234.00193465,0.0002089,2]
[316039600,1709332240812,-862.78718072,0.00020934,2]
[316039601,1709332240822,-300.0,0.00021,9]
[316039602,1709332240832,-500.0,0.00021105,2]
[316039604,1709332240841,-1078.41,0.00021105,2]
[316039605,1709332240851,-467.56881791,0.00021105,2]
[316039606,1709332240861,-2612.3284,0.0002117,7]
[316039607,1709332240870,-862.78718072,0.00021305,2]
[316039608,1709332240878,-170.264845,0.00021422,2]
[316039609,1709332240888,-620.76991985,0.00021607,2]
[316039610,1709332240897,-862.78718072,0.00021675,2]
[316039611,1709332240906,-500.0,0.00021895,2]
[316039612,1709332240914,-500.0,0.00021895,2]
[316039613,1709332240924,-500.0,0.00021895,2]
[316039614,1709332240933,-500.0,0.00021895,2]
[316039615,1709332240942,-500.0,0.00021895,2]
[316039616,1709332240951,-10191.56,0.00021895,2]
[316039617,1709332240959,-400.24472666,0.00021918,2]
[316039618,1709332240969,-157.14741337,0.00022,2]
[316039619,1709332240979,-327.22275751,0.00022044,2]
[316039620,1709332240988,-862.78718072,0.00022046,2]
[316039621,1709332240997,-1724.21211612,0.00022063,2]
[316039622,1709332241006,-862.78718072,0.00022417,2]
[316039623,1709332241015,-493.069484,0.000225,10]
[316039624,1709332241024,-620.03849599,0.00022687,2]
[316039625,1709332241033,-862.78718072,0.00022788,2]
[316039626,1709332241041,-2788.91634066,0.00023,2]
[316039627,1709332241050,-862.78718072,0.00023158,2]
[316039628,1709332241059,-5000.0,0.0002317,5]
[316039629,1709332241068,-5000.0,0.00023172,5]
[316039630,1709332241077,-306.0,0.00023178,2]
[316039631,1709332241086,-153.0,0.00023178,2]
[316039632,1709332241096,-287.6731672,0.00023178,2]
[316039633,1709332241105,-257.4123915,0.00023178,2]
[316039634,1709332241114,-153.0,0.00023178,2]
[316039635,1709332241123,-153.0,0.00023178,2]
[316039636,1709332241132,-153.0,0.00023178,2]
[316039637,1709332241141,-200.7008514,0.00023178,2]
[316039638,1709332241151,-153.0,0.00023178,2]
[316039639,1709332241160,-153.0,0.00023178,2]
[316039640,1709332241171,-153.0,0.00023178,2]
[316039641,1709332241180,-200.7008514,0.00023178,2]
[316039642,1709332241190,-153.0,0.00023178,2]
[316039643,1709332241199,-153.0,0.00023178,2]
[316039644,1709332241208,-200.5027851,0.00023178,2]
[316039645,1709332241217,-1000.0,0.0002319,5]
[316039646,1709332241226,-200.0,0.000232,2]
[316039647,1709332241236,-200.7008514,0.00023378,2]
[316039648,1709332241246,-272.22,0.000234,7]
[316039649,1709332241255,-862.78718072,0.00023529,2]
[316039650,1709332241263,-234.5338,0.00023878,2]
[316039651,1709332241272,-500.0,0.00023898,2]
[316039652,1709332241282,-500.0,0.00023898,2]
[316039653,1709332241290,-1078.41,0.00023898,2]
[316039654,1709332241300,-975.26,0.00023898,2]
[316039655,1709332241309,-1187.61,0.00023899,2]
[316039656,1709332241318,-1187.61,0.00023899,2]
[316039657,1709332241328,-1187.61,0.00023899,2]
[316039658,1709332241338,-1187.61,0.00023899,2]
[316039659,1709332241346,-1187.61,0.00023899,2]
[316039660,1709332241358,-1187.61,0.00023899,2]
[316039661,1709332241367,-1187.61,0.00023899,2]
[316039662,1709332241376,-1187.61,0.00023899,2]
[316039663,1709332241385,-1187.61,0.00023899,2]
[316039664,1709332241394,-1187.61,0.00023899,2]
[316039665,1709332241403,-1805.59,0.00023899,2]
[316039666,1709332241412,-1805.59,0.00023899,2]
[316039667,1709332241421,-1805.59,0.00023899,2]
[316039668,1709332241430,-1091.21,0.00023899,2]
[316039669,1709332241439,-1091.21,0.00023899,2]
[316039670,1709332241448,-1091.21,0.00023899,2]
[316039671,1709332241457,-500.0,0.00023899,2]
[316039672,1709332241466,-500.0,0.00023899,2]
[316039673,1709332241475,-500.0,0.00023899,2]
[316039674,1709332241484,-727.63,0.00023899,2]
[316039675,1709332241493,-727.63,0.00023899,2]
[316039676,1709332241502,-727.63,0.00023899,2]
[316039677,1709332241511,-500.0,0.00023899,2]
[316039678,1709332241520,-500.0,0.00023899,2]
[316039679,1709332241529,-500.0,0.00023899,2]
[316039680,1709332241538,-1247.01,0.00023899,2]
[316039681,1709332241547,-1247.01,0.00023899,2]
[316039682,1709332241556,-1247.01,0.00023899,2]
[316039683,1709332241565,-500.0,0.00023899,2]
[316039684,1709332241574,-500.0,0.00023899,2]
[316039685,1709332241583,-500.0,0.00023899,2]
[316039686,1709332241592,-1078.41,0.00023899,2]
[316039687,1709332241601,-1078.41,0.00023899,2]
[316039688,1709332241611,-1078.41,0.00023899,2]
[316039689,1709332241620,-975.26,0.00023899,2]
[316039690,1709332241630,-975.26,0.00023899,2]
[316039691,1709332241639,-975.26,0.00023899,2]
[316039692,1709332241648,-1252.97,0.00023899,2]
[316039693,1709332241658,-1252.97,0.00023899,2]
[316039694,1709332241667,-1252.97,0.00023899,2]
[316039695,1709332241749,-964.49,0.00023899,2]
[316039696,1709332241759,-964.49,0.00023899,2]
[316039697,1709332241769,-964.49,0.00023899,2]
[316039698,1709332241778,-118696.88311872,0.000239,2]
[316039699,1709332241787,-862.78718072,0.000239,2]
[316039700,1709332241796,-591.738319,0.000239,2]
[316039701,1709332241805,-591.738319,0.000239,2]
[316039702,1709332241815,-975.26,0.00023994,2]
[316039703,1709332241825,-975.26,0.00023994,2]
[316039704,1709332241834,-975.26,0.00023994,2]
[316039705,1709332241843,-975.26,0.00023994,2]
[316039706,1709332241852,-975.43107986,0.00023994,2]
[316039707,1709332241861,-1805.59,0.00023995,2]
[316039708,1709332241870,-1091.21,0.00023995,2]
[316039709,1709332241880,-727.63,0.00023995,2]
[316039710,1709332241889,-500.0,0.00023995,2]
[316039711,1709332241898,-1247.01,0.00023995,2]
[316039712,1709332241907,-1252.97,0.00023995,2]
[316039713,1709332241916,-964.49,0.00023995,2]
[316039714,1709332241925,-1405.80312036,0.00023996,2]
[316039715,1709332241934,-198.6077684,0.00023996,2]
[316039716,1709332241943,-267.21087934,0.00023996,2]
[316039717,1709332241951,-192.42679543,0.00023996,2]
[316039718,1709332241961,-237.55164317,0.00023996,2]
[316039719,1709332241970,-12307.46517983,0.00023996,4]
[316039720,1709332241979,-298.82206259,0.00023997,2]
[316039721,1709332241991,-298.61808289,0.00023997,2]
[316039722,1709332242000,-282.52764566,0.00023997,2]
[316039723,1709332242009,-387.63160275,0.00023997,2]
[316039724,1709332242018,-500.0,0.00023997,2]
[316039725,1709332242027,-500.0,0.00023997,2]
[316039726,1709332242037,-500.0,0.00023997,2]
[316039727,1709332242046,-1805.59,0.00023997,2]
[316039728,1709332242055,-1091.21,0.00023997,2]
[316039729,1709332242065,-611.84,0.00023997,2]
[316039730,1709332242073,-727.63,0.00023997,2]
[316039731,1709332242083,-500.0,0.00023997,2]
[316039732,1709332242092,-1247.01,0.00023997,2]
[316039733,1709332242101,-500.0,0.00023997,2]
[316039734,1709332242111,-500.0,0.00023997,2]
[316039735,1709332242120,-1078.41,0.00023997,2]
[316039736,1709332242129,-500.0,0.00023997,2]
[316039737,1709332242138,-1252.97,0.00023997,2]
[316039738,1709332242149,-964.49,0.00023997,2]
[316039739,1709332242159,-10191.56,0.00023997,2]
[316039740,1709332242168,-160.8702495,0.00023998,2]
[316039741,1709332242177,-181.85299433,0.00023998,2]
[316039742,1709332242186,-508.84911227,0.00023998,2]
[316039743,1709332242196,-155.05116689,0.00023998,2]
[316039744,1709332242205,-562.47634038,0.00023998,2]
[316039745,1709332242214,-263.31692282,0.00023998,2]
[316039746,1709332242228,-295.87885382,0.00023998,2]
[316039747,1709332242238,-429.41243131,0.00023998,2]
[316039748,1709332242248,-185.40185691,0.00023998,2]
[316039749,1709332242257,-219.95258249,0.00023998,2]
[316039750,1709332242267,-441.36557175,0.00023998,2]
[316039751,1709332242276,-478.73760126,0.00023998,2]
[316039752,1709332242286,-282.54840723,0.00023998,2]
[316039753,1709332242295,-176.94616105,0.00023998,2]
[316039755,1709332242304,-205.34317386,0.00023998,2]
[316039756,1709332242313,-247.69144409,0.00023998,2]
[316039757,1709332242322,-371.14057692,0.00023998,2]
[316039758,1709332242331,-1992.97014433,0.00023998,2]
[316039759,1709332242340,-155.07133281,0.00023998,2]
[316039760,1709332242349,-155.08219356,0.00023998,2]
[316039761,1709332242358,-300.89577802,0.00023998,2]
[316039762,1709332242367,-200.54373759,0.00023998,2]
[316039763,1709332242377,-200.0,0.00023998,2]
[316039765,1709332242385,-1654.30348637,0.00023998,2]
[316039768,1709332242394,-211.29666627,0.00023998,2]
[316039771,1709332242402,-160.40689308,0.00023998,2]
[316039774,1709332242411,-300.2820096,0.00023998,2]
[316039776,1709332242420,-169.08281547,0.00023998,2]
[316039777,1709332242429,-206.11586222,0.00023998,2]
[316039778,1709332242438,-200.01171087,0.00023998,2]
[316039779,1709332242447,-10098.67327328,0.00023998,2]
[316039780,1709332242457,-200.85706016,0.00023998,2]
[316039781,1709332242466,-179.22431201,0.00023998,2]
[316039782,1709332242475,-300.22703876,0.00023998,2]
[316039783,1709332242484,-1171.69564882,0.00023998,2]
[316039784,1709332242493,-201.7351925,0.00023998,2]
[316039785,1709332242503,-523.71030091,0.00023998,3]
[316039786,1709332242511,-280.37029672,0.00023998,2]
[316039787,1709332242520,-205.9203372,0.00023998,2]
[316039788,1709332242529,-202.60745563,0.00023998,2]
[316039789,1709332242539,-162.11854936,0.00023998,2]
[316039790,1709332242548,-262.13577343,0.00023998,2]
[316039791,1709332242557,-197.5903061,0.00023998,2]
[316039793,1709332242567,-159.87982714,0.00023998,2]
[316039795,1709332242576,-158.82433248,0.00023998,2]
[316039797,1709332242585,-155.25921865,0.00023998,2]
[316039799,1709332242594,-260.50442355,0.00023998,2]
[316039801,1709332242605,-155.20176229,0.00023998,2]
[316039802,1709332242614,-346.22025007,0.00023998,2]
[316039803,1709332242623,-1091.1082286,0.00023998,5]
[316039804,1709332242632,-198.32516916,0.00023998,2]
[316039805,1709332242642,-285.52119037,0.00023998,2]
[316039806,1709332242650,-324.72973504,0.00023998,2]
[316039807,1709332242659,-508.95946117,0.00023998,2]
[316039808,1709332242670,-595.5942201,0.00023998,2]
[316039809,1709332242679,-173.93222042,0.00023998,2]
[316039811,1709332242689,-240.49886462,0.00023998,2]
[316039813,1709332242698,-812.22817838,0.00023998,2]
[316039814,1709332242707,-263.21964131,0.00023998,7]
[316039815,1709332242716,-500.0,0.00023998,2]
[316039816,1709332242725,-399.38338015,0.00023998,2]
[316039817,1709332242734,-1078.41,0.00023998,2]
[316039818,1709332242743,-1078.41,0.00023998,2]
[316039820,1709332242753,-627.73760575,0.00023998,2]